[Event "FRA-ch Youth 2017"]
[Site "Belfort"]
[Date "2017.04.20"]
[Round "6"]
[White "Micottis, Dorian"]
[Black "Kambrath, Yannick"]
[Result "0-1"]
[ECO "B51"]
[WhiteElo "2249"]
[BlackElo "2341"]
[Annotator "NA"]
[PlyCount "132"]
[EventDate "2017.??.??"]
[EventCountry "FRA"]
[SourceTitle "playchess.com"]
[Source "ChessBase"]
[SourceQuality "1"]
[TimeControl "5400+30"]

1. e4 {[%emt 0:00:00]} c5 {[%emt 0:01:45]} 2. Nf3 {[%emt 0:00:00]} d6 {[%emt 0:00:04]} 3. Bb5+ {[%emt 0:01:15]} Nd7 {[%emt 0:00:54]} 4. d4 {[%emt 0:00:46]} cxd4 {[%emt 0:00:05]} 5. Qxd4 {[%emt 0:02:27]} a6 {[%emt 0:02:26]} 6. Be2 {[%emt 0:00:38] B51: Sicilian: Moscow Variation (3 Bb5+) without 3...Bd7} Ngf6 {[%emt 0:02:25]} 7. O-O {[%emt 0:00:44]} g6 {[%emt 0:06:37] LiveBook: 5 Games} 8. Nc3 {[%emt 0:01:40]} Bg7 {[%emt 0:00:47]} 9. Rd1 {[%emt 0:00:33]} O-O {[%emt 0:04:12]} 10. e5 {[%emt 0:01:21]} Nh5 {[%emt 0:22:02]} 11. Qh4 {[%emt 0:01:27]} dxe5 {[%emt 0:07:49]} 12. Bg5 {[%emt 0:01:31]} f6 {[%emt 0:11:05]} 13. Be3 {[%emt 0:00:24]} e6 {[%emt 0:02:14]} 14. Rd6 $146 {[%emt 0:10:48]} Qc7 {[%emt 0:02:14]} 15. Rad1 {[%emt 0:04:48]} Re8 {[%emt 0:09:12]} (15... Nf4 $16) 16. Qa4 {[%emt 0:11:36]} Re7 {[%emt 0:00:04] [#]} 17. Bb5 $1 {[%emt 0:04:09]} Nc5 {[%emt 0:13:28] [#]} 18. Qa3 {[%emt 0:08:23]} (18. Qc4 $1 $18 {is the precise move to win.} b6 19. b4) 18... b6 {[%emt 0:03:47]} 19. Bxc5 {[%emt 0:16:20]} ({White should try} 19. Rc6 $16 Qb7 20. Bxc5 bxc5 21. Rd8+ (21. Qxc5 axb5 22. Rd8+ Bf8 23. Rdxc8 Rxc8 24. Rxc8 b4 $11) 21... Bf8 22. Rxa6 Rxa6 23. Bxa6 Qxa6 24. Qxc5) 19... bxc5 {[%emt 0:01:57]} 20. Rc6 {[%emt 0:07:23]} Qa7 {[%emt 0:02:33]} 21. Rd8+ {[%emt 0:03:08]} Bf8 {[%emt 0:00:03]} 22. Bxa6 {[%emt 0:08:12]} Bxa6 {[%emt 0:01:57]} 23. Rxa8 {[%emt 0:00:07]} Qxa8 {[%emt 0:00:02]} 24. Qxa6 {[%emt 0:00:19]} Qxa6 {[%emt 0:00:46]} 25. Rxa6 {[%emt 0:00:05]} Kf7 {[%emt 0:00:38]} 26. g3 {[%emt 0:01:08]} Rd7 {[%emt 0:00:23]} 27. Rc6 {[%emt 0:01:02]} Ng7 {[%emt 0:00:51]} 28. Ne4 {[%emt 0:03:24]} Rd5 {[%emt 0:02:02]} 29. a4 {[%emt 0:00:07]} Nf5 {[%emt 0:00:27]} 30. c3 {[%emt 0:00:33]} Rd1+ {[%emt 0:00:51]} 31. Kg2 {[%emt 0:00:04]} Rb1 {[%emt 0:00:36]} 32. a5 {[%emt 0:02:51]} Rxb2 {[%emt 0:00:41]} 33. a6 {[%emt 0:00:04]} Ne3+ {[%emt 0:00:39]} 34. Kh3 Nc4 35. a7 Ra2 36. Rc7+ Be7 37. Nxc5 $2 (37. Rb7 $18) 37... Nd6 $1 38. Nb7 (38. c4 $11 Ne8 39. Rd7) 38... Nb5 39. Nd8+ Ke8 40. Nxe6 Nxa7 41. Rb7 Nc8 ({But not} 41... Rxf2 $6 42. Rxa7 Rxf3 43. Nc7+ Kd8 44. Ne6+ (44. Nd5 Bc5 45. Rc7 Rxc3 $15) 44... Ke8 45. Nc7+ Kf8 46. Nd5 $11) 42. Nc7+ Kd7 43. Nd5+ Kc6 44. Rxe7 Kxd5 45. Rxh7 Rxf2 46. Nh4 g5 47. Ng6 f5 48. Rc7 Nd6 49. Ne7+ Ke6 50. g4 f4 51. Ng8 Ne4 52. Rc6+ Kd7 53. Rc4 Nd2 54. Nf6+ Ke6 55. Ne4 Nxe4 56. Rxe4 Kd5 57. Re1 e4 58. c4+ Ke5 59. Rc1 e3 60. c5 e2 61. c6 Rf1 62. Rc5+ Kd6 63. c7 e1=Q ({Inferior is} 63... Kxc5 64. c8=Q+ Kd4 65. Qd7+ Kc3 66. Qc6+ Kd4 67. Qd7+ Kc3 68. Qc6+ Kd4 69. Qd7+ $11) 64. Rc6+ Kd5 65. Rc5+ Kd4 66. Rc4+ Kd3 0-1

[Event "FRA-ch Youth 2017"]
[Site "Belfort"]
[Date "2017.04.20"]
[Round "6"]
[White "Meunier, Clement"]
[Black "Flick, Antoine"]
[Result "1/2-1/2"]
[ECO "B25"]
[WhiteElo "2240"]
[BlackElo "2327"]
[Annotator "NA"]
[PlyCount "118"]
[EventDate "2017.??.??"]
[EventCountry "FRA"]
[SourceTitle "playchess.com"]
[Source "ChessBase"]
[SourceQuality "1"]
[TimeControl "5400+30"]

1. e4 {[%emt 0:00:00]} c5 {[%emt 0:00:06]} 2. Nc3 {[%emt 0:00:00]} Nc6 {[%emt 0:00:05]} 3. g3 {[%emt 0:00:11]} g6 {[%emt 0:00:54]} 4. Bg2 {[%emt 0:00:04]} Bg7 {[%emt 0:00:22]} 5. d3 {[%emt 0:00:05]} d6 {[%emt 0:00:09]} 6. f4 {[%emt 0:01:18]} e6 {[%emt 0:01:51]} 7. Nf3 {[%emt 0:00:07] LiveBook: 1380 Games} Nge7 {[%emt 0:00:51]} 8. O-O {[%emt 0:00:05]} O-O {[%emt 0:00:12]} 9. Be3 {[%emt 0:00:15]} b6 {[%emt 0:07:26]} 10. Bf2 {[%emt 0:00:32]} Ba6 {[%emt 0:05:06]} 11. Qd2 {[%emt 0:02:24] B25: Closed Sicilian: 3 g3, lines without early Be3} (11. g4 Qd7 12. f5 exf5 13. gxf5 gxf5 14. Bh3 Qe6 15. Nh4 Qh6 16. exf5 Bd4 17. Qg4+ Kh8 18. Bg2 Rg8 {½-½ (18) Starostits,I (2500)-David,A (2609) Riga 2011}) 11... Rc8 {[%emt 0:03:49]} 12. Rae1 {[%emt 0:01:40]} Qd7 {[%emt 0:09:39]} 13. e5 $146 {[%emt 0:23:13]} (13. g4 f5 14. gxf5 exf5 15. e5 dxe5 16. fxe5 Nd8 17. e6 Qe8 18. Bh4 Bb7 {1-0 (36) Larino Nieto,D (2442)-Pataki,G (2357) Las Palmas 2012}) 13... Qc7 {[%emt 0:12:22]} 14. g4 {[%emt 0:16:11]} (14. exd6 $11 {remains equal.} Qxd6 15. g4) 14... dxe5 {[%emt 0:17:38]} 15. fxe5 {[%emt 0:00:56]} Nxe5 {[%emt 0:01:10]} 16. Bg3 {[%emt 0:11:06]} Nxf3+ {[%emt 0:00:56]} 17. Rxf3 {[%emt 0:03:19]} Qd7 {[%emt 0:11:49]} 18. Ne4 {[%emt 0:06:25]} f6 {[%emt 0:04:11]} ({Weaker is} 18... Bxb2 19. c3 f5 20. gxf5 gxf5 21. Ng5 $16) (18... f5 $19 19. Ng5 Bb7) 19. g5 {[%emt 0:01:21]} f5 {[%emt 0:00:46]} 20. Nf6+ {[%emt 0:00:16]} Bxf6 {[%emt 0:00:34]} 21. gxf6 {[%emt 0:00:01]} Nd5 {[%emt 0:00:25]} 22. Be5 {[%emt 0:06:30]} Nxf6 {[%emt 0:03:21]} 23. Qg5 {[%emt 0:01:02]} Qd8 {[%emt 0:02:31]} 24. Rg3 {[%emt 0:00:52]} Ng4 {[%emt 0:01:57]} 25. Rxg4 {[%emt 0:00:05]} fxg4 {[%emt 0:00:05]} 26. Qxg4 {[%emt 0:00:04]} Qd7 {[%emt 0:02:41]} 27. Bc3 {[%emt 0:02:29]} Rce8 {[%emt 0:02:17]} 28. h4 {[%emt 0:04:34]} Rf5 {[%emt 0:07:32]} 29. Be4 {[%emt 0:00:41]} Re7 {[%emt 0:02:41]} 30. Bxf5 {[%emt 0:11:05]} exf5 {[%emt 0:00:04]} 31. Qg3 {[%emt 0:00:02]} Rxe1+ {[%emt 0:01:23]} 32. Qxe1 {[%emt 0:00:06]} f4 {[%emt 0:00:23]} 33. Kf2 {[%emt 0:00:25]} Bb5 {[%emt 0:00:43]} (33... Kf7 $11) 34. Qe5 {[%emt 0:00:16]} h5 {[%emt 0:00:43]} 35. Qh8+ {[%emt 0:00:09]} Kf7 {[%emt 0:00:03]} 36. Qf6+ {[%emt 0:00:08]} Ke8 {[%emt 0:00:13]} 37. Qxg6+ {[%emt 0:00:37]} Qf7 {[%emt 0:00:31]} 38. Qd6 {[%emt 0:00:31]} Bd7 {[%emt 0:00:37]} 39. Be5 {[%emt 0:04:16]} Qe6 {[%emt 0:00:44]} 40. Qb8+ {[%emt 0:00:07]} Ke7 {[%emt 0:00:28]} 41. Bxf4 {[%emt 0:00:36]} Qf5 {[%emt 0:00:32]} 42. Ke1 {[%emt 0:00:13]} Qe6+ {[%emt 0:00:33]} 43. Kd2 {[%emt 0:00:09]} Qf5 {[%emt 0:00:24]} (43... c4 $16 {might work better.} 44. Bg5+ (44. Qxa7 cxd3 45. Qa3+ Ke8 $18) 44... Kf7) 44. Be3 {[%emt 0:00:47]} Qg4 {[%emt 0:00:39] [#]} 45. Bg5+ $1 {[%emt 0:00:19]} ({Less strong is} 45. Qxa7 Qxh4 46. Qb8 (46. Qxb6 Qh2+ 47. Kd1 Bg4+ 48. Kc1 Qh1+ 49. Kd2 Qh2+ 50. Kc3 Qe5+ 51. Kd2 Qh2+ 52. Kc3 Qe5+ 53. Kd2 Qh2+ $11) 46... Qb4+ 47. Ke2 Qg4+ 48. Ke1 h4 $14) 45... Kf7 {[%emt 0:00:30] [#]} 46. Qh8 $2 {[%emt 0:04:10]} ({Not} 46. Qxa7 Qb4+ 47. Ke2 Qg4+ 48. Kd2 Qb4+ 49. Ke2 Qg4+ 50. Kf2 Qd4+ 51. Kf1 Qg4 $14) ({White has to play} 46. b3 $1 $18) 46... Qb4+ {[%emt 0:00:28]} 47. Qc3 {[%emt 0:01:44]} Qxc3+ {[%emt 0:00:42]} 48. Kxc3 {[%emt 0:00:06]} Ke6 {[%emt 0:00:19]} 49. Bf4 {[%emt 0:01:48]} Kd5 $14 {[%emt 0:00:20]} 50. b4 {[%emt 0:00:01]} Ba4 {[%emt 0:00:38]} 51. a3 {[%emt 0:00:02]} Be8 {[%emt 0:00:40]} 52. Bc7 {[%emt 0:00:38]} Kc6 {[%emt 0:00:10]} 53. Bd8 {[%emt 0:00:04]} Kd7 {[%emt 0:00:27]} 54. Bg5 {[%emt 0:00:20]} Kc6 {[%emt 0:00:42]} 55. Be3 {[%emt 0:00:20]} Bf7 {[%emt 0:00:23]} 56. a4 {[%emt 0:01:07]} a6 {[%emt 0:00:30]} 57. a5 {[%emt 0:00:18]} cxb4+ {[%emt 0:00:04]} 58. Kxb4 {[%emt 0:00:06]} b5 {[%emt 0:00:02]} 59. c3 {[%emt 0:00:18]} Kd5 1/2-1/2

[Event "FRA-ch Youth 2017"]
[Site "Belfort"]
[Date "2017.04.20"]
[Round "6"]
[White "Harutyunyan, Ruben"]
[Black "Cohen Revivo, Shoham"]
[Result "1/2-1/2"]
[ECO "A06"]
[WhiteElo "2218"]
[BlackElo "2221"]
[Annotator "NA"]
[PlyCount "159"]
[EventDate "2017.??.??"]
[EventCountry "FRA"]
[SourceTitle "playchess.com"]
[Source "ChessBase"]
[SourceQuality "1"]
[TimeControl "5400+30"]

{[%evp 11,155,22,29,24,30,27,17,14,7,8,8,14,14,32767,32767,17,26,-6,32767,-6,6,0,7,-2,32767,32767,25,10,32767,32767,32767,32767,32767,32767,32767,32767,32767,32767,0,32767,32767,32767,32767,-47,32767,32767,-31,32767,32767,32767,-55,-83,-61,32767,17,10,32767,32767,32767,32767,32767,19,25,15,35,32767,32767,32767,93,0,0,32767,0,0,0,0,32767,0,0,0,32767,0,12,0,0,0,0,0,32767,32767,0,0,0,32767,32767,0,0,32767,-461,32767,32767,32767,32767,32767,32767,-448,32767,32767,-522,32767,-467,-463,-470,32767,-462,-490,-425,-572,-524,-601,-730,32767,32767,32767,32767,32767,32767,-543,-532,-5061,-374,32767,32767,32767,32767,-11787,32767,-592,32767,-5057,-3638,-5089,32767,-5066,-375,-377]} 1. Nf3 {[%emt 0:00:00]} d5 {[%emt 0:00:18]} 2. d4 {[%emt 0:00:08]} Bf5 {[%emt 0:00:17]} 3. e3 {[%emt 0:02:07]} Nf6 {[%emt 0:00:46]} 4. c4 {[%emt 0:00:39]} e6 {[%emt 0:00:06]} 5. Nc3 {[%emt 0:03:28]} Nc6 {[%emt 0:01:43]} 6. a3 {[%emt 0:03:14]} Be7 {[%emt 0:00:13] D06: Queen's Gambit: Symmetrical and Baltic Defences} 7. Be2 {[%emt 0:00:57]} (7. Bd3 Bxd3 8. Qxd3 O-O 9. O-O Na5 10. cxd5 exd5 11. Nd2 b6 12. b4 Nb7 13. Bb2 c5 14. Qa6 {½-½ (23) Godart,F (2376)-Gozzoli,Y (2579) Menton 2016}) 7... h6 {[%emt 0:01:07]} 8. O-O {[%emt 0:03:18]} O-O {[%emt 0:01:57]} 9. b3 $146 {[%emt 0:08:56]} (9. b4 Nb8 10. Bd3 dxc4 11. Bxc4 a5 12. b5 Nd5 13. Ne2 c6 14. Ng3 {½-½ (90) Oppermann,P (2259)-Rihtaric,I (2195) ICCF email 2011}) 9... Nb8 {[%emt 0:24:34]} 10. Bb2 {[%emt 0:02:46]} Nbd7 {[%emt 0:00:40]} 11. Re1 {[%emt 0:18:23]} c6 {[%emt 0:07:01]} 12. Bd3 {[%emt 0:12:02]} Ne4 {[%emt 0:12:05]} 13. Qc2 {[%emt 0:11:31]} Ndf6 {[%emt 0:00:14]} 14. Nd2 {[%emt 0:02:58]} Bd6 {[%emt 0:00:18]} 15. g3 {[%emt 0:06:09]} Nxd2 {[%emt 0:04:40]} 16. Qxd2 {[%emt 0:00:12]} Ne4 {[%emt 0:01:46]} 17. Nxe4 {[%emt 0:06:36]} dxe4 {[%emt 0:02:10]} 18. Bf1 {[%emt 0:00:09]} Qg5 {[%emt 0:01:21]} 19. Bg2 {[%emt 0:01:33]} h5 {[%emt 0:03:03]} 20. Qc2 {[%emt 0:06:37]} Qg6 {[%emt 0:00:07]} 21. h4 {[%emt 0:01:19]} a5 {[%emt 0:03:15]} 22. Bc3 {[%emt 0:01:58]} Qh7 {[%emt 0:02:41]} 23. Kf1 f6 {[%emt 0:02:24]} 24. Ke2 {[%emt 0:02:10]} Qg6 {[%emt 0:00:20]} 25. Kd2 {[%emt 0:01:26]} b5 {[%emt 0:00:55]} 26. c5 {[%emt 0:00:24]} Bc7 {[%emt 0:00:01]} 27. Kc1 {[%emt 0:03:02]} Rfd8 {[%emt 0:00:46]} 28. Kb2 {[%emt 0:00:59]} Rd5 {[%emt 0:02:29]} 29. Bh1 {[%emt 0:00:34]} e5 {[%emt 0:01:46]} 30. Red1 {[%emt 0:00:44]} exd4 {[%emt 0:04:01]} (30... Rad8 $17) 31. Rxd4 {[%emt 0:00:32]} Rxc5 {[%emt 0:05:12]} 32. Bxe4 {[%emt 0:00:30]} Re8 {[%emt 0:05:41]} ({Black should try} 32... Bxe4 $17 33. Qxe4 Qxe4 34. Rxe4 Kf7) 33. Bxf5 {[%emt 0:00:10]} Qxf5 {[%emt 0:00:05]} 34. Qxf5 {[%emt 0:00:06]} Rxf5 {[%emt 0:00:06]} 35. Rd2 {[%emt 0:01:01]} c5 {[%emt 0:00:04]} 36. Kc2 {[%emt 0:00:42]} Be5 {[%emt 0:01:39]} 37. Rad1 {[%emt 0:00:35]} b4 {[%emt 0:00:07]} 38. Bxe5 {[%emt 0:00:27]} Rexe5 {[%emt 0:00:01]} 39. a4 {[%emt 0:00:19]} Rf3 {[%emt 0:00:16]} 40. Re2 {[%emt 0:00:41]} Ref5 {[%emt 0:01:59]} 41. Rdd2 {[%emt 0:00:22]} g5 {[%emt 0:00:07]} 42. Kd3 gxh4 {[%emt 0:00:29]} 43. gxh4 {[%emt 0:00:42]} Rh3 {[%emt 0:00:09]} 44. Rc2 {[%emt 0:00:56]} Rxh4 {[%emt 0:00:16]} 45. f4 {[%emt 0:00:18]} Rg4 {[%emt 0:01:41]} 46. Rg2 {[%emt 0:00:25]} Rxg2 {[%emt 0:09:17]} 47. Rxg2+ {[%emt 0:00:02]} Kf7 {[%emt 0:00:01]} 48. Ke4 {[%emt 0:00:55]} Ke6 {[%emt 0:00:03]} 49. Rg8 $1 {[%emt 0:00:54]} Rd5 {[%emt 0:00:07]} 50. Re8+ {[%emt 0:00:28]} Kd7 {[%emt 0:00:36]} 51. Rh8 {[%emt 0:00:27]} (51. Kxd5 $2 {loses.} Kxe8 52. Kxc5 h4 $19) 51... Rd2 {[%emt 0:00:23]} 52. Rxh5 {[%emt 0:00:22]} Kc6 {[%emt 0:01:21]} 53. Rh6 {[%emt 0:00:17]} Rd6 {[%emt 0:00:01]} 54. Kf3 {[%emt 0:00:51] [#]} c4 $1 {[%emt 0:00:43]} 55. bxc4 {[%emt 0:00:31]} Kc5 {[%emt 0:00:24]} 56. Rh5+ {[%emt 0:00:34]} Kxc4 {[%emt 0:00:02]} 57. Rxa5 {[%emt 0:00:19]} Rb6 {[%emt 0:00:04]} 58. Ra8 {[%emt 0:00:42]} b3 {[%emt 0:00:56]} 59. a5 {[%emt 0:00:08]} b2 {[%emt 0:01:00]} 60. Rc8+ {[%emt 0:00:50]} Kb5 {[%emt 0:01:02]} 61. axb6 {[%emt 0:00:06]} b1=Q {[%emt 0:00:04]} 62. Rf8 {[%emt 0:00:53]} Qd1+ {[%emt 0:01:27]} 63. Kf2 {[%emt 0:00:29]} Qc2+ {[%emt 0:00:33]} ({Less strong is} 63... Kxb6 64. Rxf6+ Kc5 65. Re6 $19) 64. Kf3 {[%emt 0:00:34]} Qc6+ {[%emt 0:00:19]} 65. Kg4 {[%emt 0:00:30]} Qe6+ {[%emt 0:01:00]} 66. Kh5 {[%emt 0:00:30]} Kxb6 {[%emt 0:01:26]} 67. Kg6 {[%emt 0:00:09]} Qxe3 {[%emt 0:00:49]} 68. Rxf6+ {[%emt 0:00:04]} Kc7 {[%emt 0:00:08]} 69. f5 {[%emt 0:01:11]} Qg3+ {[%emt 0:00:21]} 70. Kf7 {[%emt 0:00:14]} (70. Kh5 $142) 70... Kd7 {[%emt 0:00:14]} 71. Re6 {[%emt 0:00:15]} Qg5 {[%emt 0:00:39]} 72. Rf6 {[%emt 0:00:56]} Qg4 {[%emt 0:01:21]} 73. Kf8 {[%emt 0:00:12]} Qb4+ {[%emt 0:00:22]} 74. Kg8 {[%emt 0:00:29]} Qc4+ {[%emt 0:00:29]} 75. Kg7 {[%emt 0:00:24]} Qd4 {[%emt 0:00:07]} 76. Kf7 {[%emt 0:00:26]} Qe5 {[%emt 0:00:26]} 77. Kg6 {[%emt 0:00:22]} Qd5 $2 {[%emt 0:00:51]} (77... Qg3+ 78. Kh5 Ke7 79. Re6+ Kf7) 78. Re6 $19 {[%emt 0:00:11]} Qd4 {[%emt 0:00:54]} 79. Kg5 {[%emt 0:00:30]} Qg7+ {[%emt 0:00:14]} 80. Kf4 {[%emt 0:00:05]} 1/2-1/2

[Event "FRA-ch Youth 2017"]
[Site "Belfort"]
[Date "2017.04.20"]
[Round "6"]
[White "Bergougnoux, Axel"]
[Black "Viel, Simon"]
[Result "0-1"]
[ECO "C00"]
[WhiteElo "2194"]
[BlackElo "2220"]
[Annotator "NA"]
[PlyCount "72"]
[EventDate "2017.??.??"]
[EventCountry "FRA"]
[SourceTitle "playchess.com"]
[Source "ChessBase"]
[SourceQuality "1"]
[TimeControl "5400+30"]

1. e4 {[%emt 0:00:00]} e6 {[%emt 0:00:02]} 2. d4 {[%emt 0:00:00]} d5 {[%emt 0:00:05]} 3. Bd3 {[%emt 0:00:00]} c5 {[%emt 0:00:37]} 4. exd5 {[%emt 0:00:00]} exd5 {[%emt 0:00:01]} 5. Nf3 {[%emt 0:00:03]} c4 {[%emt 0:00:05] C01: French: Exchange Variation} 6. Be2 {[%emt 0:00:09]} Nf6 {[%emt 0:00:05]} (6... Nc6 7. O-O Bd6 8. b3 cxb3 9. axb3 Nge7 10. c4 h6 11. Nc3 O-O 12. h3 Bf5 13. Bd3 Qd7 14. Bxf5 Qxf5 15. Be3 Bb4 16. Na2 a5 {½-½ (16) Priyadharshan,K (2527)-Nyzhnyk,I (2616) Kenner 2016}) 7. O-O {[%emt 0:00:23]} Be7 {[%emt 0:00:05]} 8. Ne5 {[%emt 0:09:55]} O-O {[%emt 0:02:56]} 9. b3 {[%emt 0:03:47]} cxb3 {[%emt 0:00:05]} 10. axb3 {[%emt 0:00:06]} Nc6 {[%emt 0:03:03]} 11. Be3 $146 (11. Nxc6 bxc6 12. Bf4 Re8 13. Nc3 {½-½ (25) Hollan,P (2292)-Livaic,L (2444) Prague 2016}) 11... Qc7 {[%emt 0:04:28]} 12. f4 {[%emt 0:12:44]} Bf5 {[%emt 0:03:42]} 13. c4 {[%emt 0:03:40]} Nb4 {[%emt 0:06:15]} 14. Na3 {[%emt 0:04:20]} Ne4 {[%emt 0:05:18]} 15. Nb5 {[%emt 0:07:57]} Qd8 {[%emt 0:02:22]} 16. Bf3 {[%emt 0:15:35]} ({Not} 16. Rxa7 $2 Rxa7 17. Nxa7 Nc3 $19) 16... a6 {[%emt 0:09:29]} 17. Na3 {[%emt 0:02:03]} f6 {[%emt 0:03:09]} 18. Ng4 {[%emt 0:10:23]} Re8 {[%emt 0:04:20]} 19. Bf2 {[%emt 0:05:29]} Bd6 {[%emt 0:12:09]} 20. g3 {[%emt 0:01:46]} h5 {[%emt 0:16:28]} 21. Ne3 {[%emt 0:16:02]} Nxf2 {[%emt 0:00:42]} 22. Kxf2 {[%emt 0:00:01]} Nd3+ {[%emt 0:00:09]} 23. Kg2 {[%emt 0:00:11]} Rxe3 {[%emt 0:08:27]} 24. Bxd5+ {[%emt 0:00:01]} Kh8 {[%emt 0:00:02]} 25. Qxh5+ {[%emt 0:00:07]} Bh7 {[%emt 0:00:07]} 26. Nc2 $2 {[%emt 0:02:20]} (26. Bf7 $1 $11 {and White stays safe.} Bxa3 27. Rxa3) 26... Qe8 {[%emt 0:02:35]} 27. Bf7 {[%emt 0:04:11]} (27. Qxe8+ {is the only way for White.} Rexe8 28. Ne1) 27... Qe4+ {[%emt 0:00:11]} 28. Kh3 {[%emt 0:00:25]} Qf5+ {[%emt 0:03:16]} 29. Qg4 {[%emt 0:00:43]} Re2 {[%emt 0:01:20]} 30. Qxf5 Bxf5+ {[%emt 0:00:01]} 31. g4 {[%emt 0:00:46]} Nxf4+ {[%emt 0:00:43]} 32. Rxf4 {[%emt 0:00:38]} Bxc2 {[%emt 0:00:01]} 33. Raf1 {[%emt 0:00:36]} Bxf4 {[%emt 0:00:39]} 34. Rxf4 {[%emt 0:00:00]} g5 $19 {[%emt 0:00:56]} 35. Rxf6 {[%emt 0:00:19]} Kg7 {[%emt 0:00:07]} 36. Rf3 {[%emt 0:01:12]} Be4 {[%emt 0:00:11]} 0-1